fUSD/lending_fUSD_20250119
["ID","MTS","AMOUNT","RATE_DAILY","PERIOD"]
[349529136,1737281446454,-500.0,0.00019178,2]
[349529138,1737281446464,-500.0,0.00019178,2]
[349529139,1737281446473,-502.9341823,0.00019178,2]
[349529141,1737281446482,-500.0,0.00019178,2]
[349529143,1737281446491,-500.0,0.00019178,2]
[349529145,1737281446502,-500.0,0.00019178,2]
[349529146,1737281446511,-500.0,0.00019178,2]
[349529147,1737281446520,-500.0,0.00019178,2]
[349529148,1737281446529,-1308.45,0.00019178,2]
[349529149,1737281446541,-500.0,0.00019178,2]
[349529150,1737281446551,-500.0,0.00019178,2]
[349529151,1737281446560,-501.6627539,0.00019178,2]
[349529152,1737281446569,-500.0,0.00019178,2]
[349529153,1737281446579,-500.0,0.00019178,2]
[349529155,1737281446590,-500.0,0.00019178,2]
[349529157,1737281446599,-691.44,0.00019178,2]
[349529159,1737281446608,-273.937247,0.00019178,2]
[349529161,1737281446618,-500.0,0.00019178,2]
[349529163,1737281446628,-500.0,0.00019178,2]
[349529165,1737281446638,-500.0,0.00019178,2]
[349529168,1737281446648,-638.79,0.00019178,2]
[349529169,1737281446658,-500.0,0.00019178,2]
[349529172,1737281446669,-83.18417713,0.00019178,2]
[349529174,1737281446684,-416.81582287,0.00019178,2]
[349529176,1737281446693,-500.0,0.00019178,2]
[349529178,1737281446703,-500.0,0.00019178,2]
[349529180,1737281446713,-500.0,0.00019178,2]
[349529182,1737281446722,-500.0,0.00019178,2]
[349529184,1737281446732,-500.0,0.00019178,2]
[349529187,1737281446742,-502.63562832,0.00019178,2]
[349529188,1737281446751,-725.89,0.00019178,2]
[349529190,1737281446761,-500.0,0.00019178,2]
[349529192,1737281446770,-1094.97,0.00019178,2]
[349529194,1737281446779,-500.0,0.00019178,2]
[349529196,1737281446789,-500.0,0.00019178,2]
[349529198,1737281446799,-500.0,0.00019178,2]
[349529200,1737281446808,-500.0,0.00019178,2]
[349529218,1737281446959,-587.0,0.00019178,2]
[349529220,1737281446968,-500.0,0.00019178,2]
[349529222,1737281446977,-500.0,0.00019178,2]
[349529225,1737281446987,-500.0,0.00019178,2]
[349529227,1737281446995,-500.0,0.00019178,2]
[349529229,1737281447004,-500.0,0.00019178,2]
[349529231,1737281447013,-1294.73,0.00019178,2]
[349529233,1737281447022,-500.0,0.00019178,2]
[349529235,1737281447032,-500.0,0.00019178,2]
[349529237,1737281447041,-1731.92,0.00019178,2]
[349529239,1737281447051,-500.0,0.00019178,2]
[349529241,1737281447060,-500.0,0.00019178,2]
[349529243,1737281447069,-500.0,0.00019178,2]
[349529245,1737281447079,-385.59665806,0.00019178,2]
[349529247,1737281447087,-500.0,0.00019178,2]
[349529249,1737281447096,-500.96871051,0.00019178,2]
[349529251,1737281447105,-501.16613661,0.00019178,2]
[349529253,1737281447115,-1366.13,0.00019178,2]
[349529255,1737281447123,-500.0,0.00019178,2]
[349529257,1737281447132,-500.0,0.00019178,2]
[349529259,1737281447142,-500.0,0.00019178,2]
[349529261,1737281447153,-500.0,0.00019178,2]
[349529263,1737281447162,-500.0,0.00019178,2]
[349529265,1737281447171,-657.19,0.00019178,2]
[349529267,1737281447180,-500.0,0.00019178,2]
[349529269,1737281447189,-749.47,0.00019178,2]
[349529271,1737281447197,-500.0,0.00019178,2]
[349529273,1737281447206,-500.0,0.00019178,2]
[349529275,1737281447215,-500.0,0.00019178,2]
[349529277,1737281447225,-500.0,0.00019178,2]
[349529279,1737281447234,-689.31,0.00019178,2]
[349529281,1737281447243,-1090.94,0.00019178,2]
[349529283,1737281447252,-500.0,0.00019178,2]
[349529285,1737281447262,-1991.66460371,0.00019178,2]
[349529287,1737281447276,-1662.21539629,0.00019178,2]
[349529289,1737281447285,-500.0,0.00019178,2]
[349529291,1737281447294,-500.0,0.00019178,2]
[349529293,1737281447304,-589.66,0.00019178,2]
[349529295,1737281447313,-500.0,0.00019178,2]
[349529297,1737281447323,-500.0,0.00019178,2]
[349529300,1737281447332,-546.34,0.00019178,2]
[349529302,1737281447342,-503.30762018,0.00019178,2]
[349529304,1737281447351,-500.0,0.00019178,2]
[349529306,1737281447360,-500.0,0.00019178,2]
[349529308,1737281447369,-363.92305333,0.00019178,2]
[349529310,1737281447378,-1082.12,0.00019178,2]
[349529312,1737281447388,-500.0,0.00019178,2]
[349529314,1737281447398,-1181.02,0.00019178,2]
[349529316,1737281447408,-500.0,0.00019178,2]
[349529318,1737281447417,-1532.36,0.00019178,2]
[349529320,1737281447426,-918.23,0.00019178,2]
[349529322,1737281447436,-500.0,0.00019178,2]
[349529324,1737281447445,-1866.62,0.00019178,2]
[349529326,1737281447454,-500.0,0.00019178,2]
[349529328,1737281447463,-500.0,0.00019178,2]
[349529330,1737281447472,-500.0,0.00019178,2]
[349529332,1737281447481,-500.0,0.00019178,2]
[349529334,1737281447490,-500.0,0.00019178,2]
[349529336,1737281447500,-500.0,0.00019178,2]
[349529338,1737281447509,-500.0,0.00019178,2]
[349529340,1737281447519,-500.0,0.00019178,2]
[349529342,1737281447527,-500.0,0.00019178,2]
[349529344,1737281447538,-1332.59,0.00019178,2]
[349529346,1737281447548,-500.0,0.00019178,2]
[349529348,1737281447558,-500.0,0.00019178,2]
[349529350,1737281447567,-500.0,0.00019178,2]
[349529352,1737281447579,-500.0,0.00019178,2]
[349529354,1737281447589,-563.77,0.00019178,2]
[349529356,1737281447599,-271.51385807,0.00019178,2]
[349529358,1737281447612,-805.23614193,0.00019178,2]
[349529360,1737281447624,-500.0,0.00019178,2]
[349529362,1737281447633,-500.0,0.00019178,2]
[349529364,1737281447642,-500.0,0.00019178,2]
[349529366,1737281447652,-500.0,0.00019178,2]
[349529368,1737281447661,-3414.53,0.00019178,2]
[349529370,1737281447670,-500.0,0.00019178,2]
[349529372,1737281447680,-500.0,0.00019178,2]
[349529375,1737281447689,-500.0,0.00019178,2]
[349529377,1737281447698,-351.15031479,0.00019178,2]
[349529379,1737281447707,-599.38,0.00019178,2]
[349529381,1737281447718,-500.0,0.00019178,2]
[349529383,1737281447727,-584.52,0.00019178,2]
[349529385,1737281447736,-240.98477002,0.00019178,2]
[349529388,1737281447749,-262.88015182,0.00019178,2]
[349529390,1737281447758,-500.0,0.00019178,2]
[349529392,1737281447768,-528.34,0.00019178,2]
[349529394,1737281447777,-500.0,0.00019178,2]
[349529396,1737281447787,-670.67,0.00019178,2]
[349529398,1737281447797,-898.59,0.00019178,2]
[349529400,1737281447807,-500.0,0.00019178,2]
[349529402,1737281447816,-500.0,0.00019178,2]
[349529404,1737281447825,-500.0,0.00019178,2]
[349529406,1737281447834,-893.35,0.00019178,2]
[349529408,1737281447844,-233.6333906,0.00019178,2]
[349529410,1737281447856,-266.3666094,0.00019178,2]
[349529412,1737281447866,-259.75738662,0.00019178,2]
[349529414,1737281447875,-500.0,0.00019178,2]
[349529416,1737281447885,-500.0,0.00019178,2]
[349529418,1737281447894,-500.0,0.00019178,2]
[349529420,1737281447905,-500.0,0.00019178,2]
[349529422,1737281447914,-754.17,0.00019178,2]
[349529424,1737281447923,-500.0,0.00019178,2]
[349529426,1737281447932,-818.85,0.00019178,2]
[349529428,1737281447942,-503.38704047,0.00019178,2]
[349529430,1737281447951,-500.0,0.00019178,2]
[349529432,1737281447961,-500.0,0.00019178,2]
[349529434,1737281447970,-1196.79,0.00019178,2]
[349529436,1737281447980,-1946.85,0.00019178,2]
[349529438,1737281447989,-500.0,0.00019178,2]
[349529440,1737281447998,-500.0,0.00019178,2]
[349529442,1737281448008,-500.0,0.00019178,2]
[349529445,1737281448018,-500.0,0.00019178,2]
[349529447,1737281448027,-500.0,0.00019178,2]
[349529449,1737281448037,-500.0,0.00019178,2]
[349529451,1737281448047,-526.94,0.00019178,2]
[349529453,1737281448057,-502.77695158,0.00019178,2]
[349529455,1737281448067,-500.0,0.00019178,2]
[349529457,1737281448076,-500.0,0.00019178,2]
[349529459,1737281448086,-500.0,0.00019178,2]
[349529461,1737281448096,-626.96,0.00019178,2]
[349529463,1737281448105,-500.0,0.00019178,2]
[349529465,1737281448115,-6594.52,0.00019178,2]
[349529467,1737281448125,-1288.22,0.00019178,2]
[349529469,1737281448134,-500.0,0.00019178,2]
[349529471,1737281448143,-731.77,0.00019178,2]
[349529472,1737281448156,-500.0,0.00019178,2]
[349529473,1737281448166,-1262.3,0.00019178,2]
[349529474,1737281448176,-500.0,0.00019178,2]
[349529475,1737281448186,-500.0,0.00019178,2]
[349529476,1737281448195,-500.0,0.00019178,2]
[349529477,1737281448204,-631.32786632,0.00019178,2]
[349529478,1737281448214,-500.0,0.00019178,2]
[349529480,1737281448224,-500.0,0.00019178,2]
[349529481,1737281448233,-500.0,0.00019178,2]
[349529483,1737281448242,-618.35,0.00019178,2]
[349529485,1737281448252,-500.0,0.00019178,2]
[349529487,1737281448261,-151.0,0.00019178,2]
[349529489,1737281448270,-500.0,0.00019178,2]
[349529491,1737281448280,-151.0,0.00019178,2]
[349529493,1737281448289,-500.0,0.00019178,2]
[349529495,1737281448299,-548.75,0.00019178,2]
[349529497,1737281448308,-500.0,0.00019178,2]
[349529499,1737281448318,-6057.66,0.00019178,2]
[349529501,1737281448328,-500.0,0.00019178,2]
[349529503,1737281448337,-500.0,0.00019178,2]
[349529505,1737281448346,-151.0,0.00019178,2]
[349529507,1737281448356,-500.0,0.00019178,2]
[349529509,1737281448367,-500.0,0.00019178,2]
[349529511,1737281448376,-500.0,0.00019178,2]
[349529513,1737281448386,-500.0,0.00019178,2]
[349529515,1737281448396,-500.0,0.00019178,2]
[349529517,1737281448407,-500.0,0.00019178,2]
[349529519,1737281448416,-500.0,0.00019178,2]
[349529521,1737281448426,-500.0,0.00019178,2]
[349529523,1737281448436,-500.0,0.00019178,2]
[349529525,1737281448445,-500.0,0.00019178,2]
[349529527,1737281448455,-500.0,0.00019178,2]
[349529529,1737281448464,-4140.6,0.00019178,2]
[349529531,1737281448473,-500.0,0.00019178,2]
[349529533,1737281448482,-504.39460658,0.00019178,2]
[349529535,1737281448491,-500.0,0.00019178,2]
[349529537,1737281448500,-500.0,0.00019178,2]
[349529539,1737281448510,-500.0,0.00019178,2]
[349529541,1737281448519,-2438.87,0.00019178,2]
[349529543,1737281448528,-500.0,0.00019178,2]
[349529545,1737281448540,-500.0,0.00019178,2]
[349529547,1737281448549,-500.0,0.00019178,2]
[349529549,1737281448558,-502.27119125,0.00019178,2]
[349529551,1737281448567,-500.0,0.00019178,2]
[349529553,1737281448580,-500.0,0.00019178,2]
[349529555,1737281448591,-500.0,0.00019178,2]
[349529557,1737281448600,-500.0,0.00019178,2]
[349529559,1737281448610,-500.0,0.00019178,2]
[349529561,1737281448620,-168.09445598,0.00019178,2]
[349529563,1737281448629,-1847.95,0.00019178,2]
[349529565,1737281448639,-500.0,0.00019178,2]
[349529567,1737281448649,-500.0,0.00019178,2]
[349529569,1737281448661,-500.0,0.00019178,2]
[349529571,1737281448671,-523.27,0.00019178,2]
[349529573,1737281448680,-500.0,0.00019178,2]
[349529575,1737281448690,-537.95598431,0.00019178,2]
[349529577,1737281448700,-500.0,0.00019178,2]
[349529579,1737281448709,-500.0,0.00019178,2]
[349529581,1737281448719,-1435.52,0.00019178,2]
[349529583,1737281448729,-500.0,0.00019178,2]
[349529585,1737281448738,-500.0,0.00019178,2]
[349529587,1737281448748,-1717.46,0.00019178,2]
[349529589,1737281448757,-500.0,0.00019178,2]
[349529591,1737281448767,-695.69,0.00019178,2]
[349529593,1737281448776,-500.0,0.00019178,2]
[349529595,1737281448786,-504.95644094,0.00019178,2]
[349529597,1737281448796,-1798.31,0.00019178,2]
[349529599,1737281448805,-5748.22,0.00019178,2]
[349529601,1737281448815,-500.0,0.00019178,2]
[349529602,1737281448824,-500.0,0.00019178,2]
[349529605,1737281448833,-500.0,0.00019178,2]
[349529606,1737281448843,-500.0,0.00019178,2]
[349529608,1737281448852,-500.0,0.00019178,2]
[349529610,1737281448861,-500.0,0.00019178,2]
[349529613,1737281448871,-500.0,0.00019178,2]
[349529615,1737281448881,-1274.05951634,0.00019178,2]
[349529701,1737281449787,-192.12387832,0.00018677,2]
[349529702,1737281449797,-1134.31048366,0.00019178,2]
[349529704,1737281449806,-607.26,0.00019178,2]
[349529706,1737281449816,-500.0,0.00019178,2]
[349529708,1737281449825,-500.0,0.00019178,2]
[349529710,1737281449834,-500.0,0.00019178,2]
[349529712,1737281449843,-502.12141267,0.00019178,2]
[349529714,1737281449853,-500.0,0.00019178,2]
[349529716,1737281449862,-500.0,0.00019178,2]
[349529718,1737281449872,-500.0,0.00019178,2]
[349529720,1737281449881,-500.0,0.00019178,2]
[349529723,1737281449891,-500.0,0.00019178,2]
[349529725,1737281449900,-526.81761601,0.00019178,2]
[349529726,1737281449910,-3199.86,0.00019178,2]
[349529729,1737281449920,-500.0,0.00019178,2]
[349529731,1737281449929,-500.0,0.00019178,2]
[349529733,1737281449939,-500.0,0.00019178,2]
[349529735,1737281449949,-500.0,0.00019178,2]
[349529736,1737281449958,-7223.98,0.00019178,2]
[349529739,1737281449968,-500.0,0.00019178,2]
[349529741,1737281449978,-500.0,0.00019178,2]
[349529742,1737281449987,-5108.22,0.00019178,2]
[349529745,1737281449997,-500.0,0.00019178,2]
[349529746,1737281450006,-502.43619794,0.00019178,2]
[349529748,1737281450015,-500.0,0.00019178,2]
[349529751,1737281450025,-500.0,0.00019178,2]
[349529753,1737281450035,-500.0,0.00019178,2]
[349529754,1737281450044,-504.38815457,0.00019178,2]
[349529756,1737281450054,-1004.12,0.00019178,2]
[349529759,1737281450063,-500.0,0.00019178,2]
[349529760,1737281450073,-500.0,0.00019178,2]
[349529762,1737281450082,-500.0,0.00019178,2]
[349529764,1737281450091,-500.0,0.00019178,2]
[349529766,1737281450100,-500.0,0.00019178,2]
[349529768,1737281450109,-500.0,0.00019178,2]
[349529770,1737281450119,-504.5820657,0.00019178,2]
[349529772,1737281450128,-54.73814071,0.00019178,2]
[349529775,1737281450141,-445.26185929,0.00019178,2]
[349529777,1737281450150,-455.89654071,0.00019178,2]
[349529779,1737281450163,-44.10345929,0.00019178,2]
[349529781,1737281450172,-596.94654071,0.00019178,2]
[349529783,1737281450183,-340.94345929,0.00019178,2]
[349529785,1737281450193,-500.0,0.00019178,2]
[349529787,1737281450202,-500.0,0.00019178,2]
[349529789,1737281450211,-658.84,0.00019178,2]
[349529791,1737281450222,-219.57838604,0.00019178,2]
[349529794,1737281450237,-2803.82161396,0.00019178,2]
[349529796,1737281450246,-854.34,0.00019178,2]
[349529798,1737281450256,-500.0,0.00019178,2]
[349529800,1737281450265,-500.0,0.00019178,2]
[349529802,1737281450274,-500.0,0.00019178,2]
[349529804,1737281450284,-500.0,0.00019178,2]
[349529806,1737281450293,-500.0,0.00019178,2]
[349529808,1737281450302,-1137.83,0.00019178,2]
[349529810,1737281450311,-500.0,0.00019178,2]
[349529812,1737281450320,-500.0,0.00019178,2]
[349529814,1737281450329,-1166.64,0.00019178,2]
[349529816,1737281450339,-502.58046675,0.00019178,2]
[349529818,1737281450348,-500.0,0.00019178,2]
[349529820,1737281450357,-500.0,0.00019178,2]
[349529822,1737281450367,-1238.9,0.00019178,2]
[349529824,1737281450376,-582.82,0.00019178,2]
[349529826,1737281450385,-500.0,0.00019178,2]
[349529828,1737281450395,-966.98,0.00019178,2]
[349529830,1737281450406,-500.0,0.00019178,2]
[349529832,1737281450416,-778.6,0.00019178,2]
[349529834,1737281450425,-500.0,0.00019178,2]
[349529836,1737281450434,-500.0,0.00019178,2]
[349529838,1737281450443,-150.0,0.00019178,2]
[349529840,1737281450453,-500.0,0.00019178,2]
[349529842,1737281450462,-3872.88791931,0.00019178,2]
[349529844,1737281450474,-358.67365013,0.00019178,2]
[349529847,1737281450485,-2685.99843056,0.00019178,2]
[349529849,1737281450494,-2570.95,0.00019178,2]
[349529851,1737281450504,-500.0,0.00019178,2]
[349529853,1737281450513,-500.0,0.00019178,2]
[349529855,1737281450521,-61.65156944,0.00019178,2]
[349529857,1737281450537,-438.34843056,0.00019178,2]
[349529859,1737281450549,-1852.91548868,0.00019178,2]
[349529862,1737281450561,-5214.63451132,0.00019178,2]
[349529863,1737281450570,-1347.79,0.00019178,2]
[349529865,1737281450580,-6444.12548865,0.00019178,2]
[349529868,1737281450592,-3265.01451135,0.00019178,2]
[349529870,1737281450601,-506.36967296,0.00019178,2]
[349529872,1737281450610,-322.26581569,0.00019178,2]
[349529912,1737281450978,-220.0,0.00019078,2]
[349529914,1737281450988,-128.547565,0.00019178,2]
[349529916,1737281450999,-57.93595221,0.00019178,2]
[349529918,1737281451009,-500.0,0.00019178,2]
[349529920,1737281451019,-46.49928423,0.00019178,2]
[349529922,1737281451030,-456.95674394,0.00019178,2]
[349529925,1737281451040,-186.79909714,0.00019178,2]
[349529927,1737281451049,-312.27869336,0.00019178,2]
[349529929,1737281451060,-187.72130664,0.00019178,2]
[349529931,1737281451069,-376.13370336,0.00019178,2]
[349529933,1737281451080,-977.99847696,0.00019178,2]
[349529935,1737281451091,-2126.48260283,0.00019178,2]
[349529937,1737281451102,-1053.6999999,0.00019178,2]
[349529940,1737281451118,-429.52322016,0.00019178,2]
[349529956,1737281451322,-36.16199679,0.00019178,2]
[349529958,1737281451331,-500.0,0.00019178,2]
[349529960,1737281451341,-301.53565066,0.00019178,2]
[349529962,1737281451352,-200.76555076,0.00019178,2]
[349529964,1737281451361,-500.0,0.00019178,2]
[349529966,1737281451370,-500.0,0.00019178,2]
[349529968,1737281451379,-500.0,0.00019178,2]
[349529970,1737281451388,-862.09,0.00019178,2]
[349529972,1737281451396,-1497.79,0.00019178,2]
[349529974,1737281451408,-502.60307126,0.00019178,2]
[349529976,1737281451417,-508.24088272,0.00019178,2]
[349529978,1737281451426,-500.0,0.00019178,2]
[349529980,1737281451435,-500.0,0.00019178,2]
[349529982,1737281451444,-500.0,0.00019178,2]
[349529984,1737281451454,-500.0,0.00019178,2]
[349529986,1737281451463,-1090.47,0.00019178,2]
[349529988,1737281451472,-500.0,0.00019178,2]
[349529990,1737281451481,-372.60462234,0.00019178,2]
[349530132,1737282273465,151.0,0.00022,120]
[349530135,1737282412804,-345.31,0.00010137,2]
[349530136,1737282412831,-149654.69,0.00012,2]
[349530137,1737282418091,-260.93396686,0.00012,2]
[349530139,1737282480903,345.31,0.0001,2]
[349530140,1737282480934,85027.53902676,0.0001,2]
[349530188,1737282631711,-354.92370002,0.0001,2]
[349530190,1737282631723,-12568.21576157,0.0001,2]
[349530193,1737282631733,-1997.21734795,0.0001,2]
[349530195,1737282631747,-1308.54718657,0.0001,2]
[349530197,1737282631759,-3134.7729856,0.0001,2]
[349530203,1737282631866,-48603.62936839,0.0001,2]
[349530204,1737282631875,-283.13435254,0.00010037,2]
[349530205,1737282631885,-157.84,0.00010137,2]
[349530206,1737282631897,-20277.48020597,0.00011073,2]
[349530207,1737282631908,-44545.09575263,0.00011073,2]
[349530208,1737282631920,-17207.97493363,0.00011073,2]
[349530209,1737282631933,-26514.44910777,0.00011073,2]
[349530210,1737282631943,-200.0,0.00011716,2]
[349530211,1737282631952,-13541.87819046,0.00011728,2]
[349530212,1737282631962,-13541.87819046,0.00011736,2]
[349530213,1737282631972,-125.12696917,0.00011757,2]
[349530214,1737282631984,-13416.75122129,0.00011757,2]
[349530215,1737282631992,-1996.75759187,0.00011774,2]
[349530216,1737282632003,-9432.78553198,0.00011774,2]
[349530217,1737282632019,-2112.33506661,0.00011774,2]
[349530218,1737282632028,-9734.6205842,0.00011779,2]
[349530219,1737282632038,-267.58562523,0.00011779,2]
[349530220,1737282632056,-712.02367317,0.00011779,2]
[349530221,1737282632080,-2827.64830786,0.00011779,2]
[349530222,1737282632089,-200.0,0.00011806,2]
[349530224,1737282632099,-200.0,0.0001181,2]
[349530226,1737282632108,-172.91149047,0.00011929,2]
[349530228,1737282632117,-36476.21872963,0.0001198,2]
[349530229,1737282632140,-647.1357224,0.0001198,2]
[349530250,1737282637600,-9347.83804151,0.0001198,2]
[349530251,1737282637609,-5644.96156183,0.00012,2]
[349530252,1737282637621,-6320.88169928,0.00012,2]
[349530255,1737282638685,-151824.40373547,0.00012,2]
[349530256,1737282638694,-242.39772222,0.00012029,2]
[349530257,1737282638705,-573.46737642,0.00012129,2]
[349530258,1737282638714,-746.38648374,0.00012229,2]
[349530259,1737282638723,-173.83,0.00012329,2]
[349530260,1737282638734,-172.91149043,0.00012754,2]
[349530261,1737282638744,-203.30990932,0.00013,2]
[349530262,1737282638753,-203.30990918,0.00013,2]
[349530263,1737282638762,-203.30990918,0.00013,2]
[349530264,1737282638771,-203.30990918,0.00013,2]
[349530265,1737282638780,-203.30990918,0.00013,2]
[349530266,1737282638790,-746.3864837,0.00013026,2]
[349530267,1737282638799,-150.99,0.00013026,2]
[349530268,1737282638808,-1862.0,0.00013345,2]
[349530269,1737282638817,-819.0,0.00013345,2]
[349530270,1737282638827,-2945.0,0.00013345,2]
[349530271,1737282638836,-1268.0,0.00013345,2]
[349530272,1737282638850,-150.0,0.00013345,2]
[349530273,1737282638866,-2017.0,0.00013345,2]
[349530274,1737282638875,-151.0,0.00013345,2]
[349530275,1737282638884,-203.30990918,0.000134,2]
[349530276,1737282638898,-172.91149043,0.00013579,2]
[349530277,1737282638907,-587.0,0.00013589,2]
[349530278,1737282638916,-746.3864837,0.00013823,2]
[349530279,1737282638927,-203.30990918,0.000139,2]
[349530280,1737282638938,-203.30990918,0.000144,2]
[349530281,1737282638948,-172.91149043,0.00014403,2]
[349530282,1737282638957,-746.3864837,0.00014619,2]
[349530283,1737282638968,-203.30990918,0.000149,2]
[349530284,1737282638977,-550.0,0.00015,2]
[349530285,1737282638987,-172.91149043,0.00015228,2]
[349530286,1737282638996,-940.47,0.00015344,2]
[349530287,1737282639005,-203.30990918,0.000154,2]
[349530288,1737282639015,-746.3864837,0.00015416,2]
[349530289,1737282639024,-203.30990918,0.000159,2]
[349530290,1737282639033,-172.91149043,0.00016053,2]
[349530291,1737282639042,-173.83,0.00016096,2]
[349530292,1737282639053,-200.0,0.00016097,2]
[349530293,1737282639062,-746.3864837,0.00016213,2]
[349530294,1737282639072,-150.0,0.00016345,2]
[349530295,1737282639081,-203.30990918,0.000164,2]
[349530296,1737282639090,-500.0,0.00016493,2]
[349530297,1737282639100,-200.0,0.00016698,2]
[349530298,1737282639109,-719.04,0.000167,2]
[349530299,1737282639119,-345.31,0.00016813,2]
[349530300,1737282639128,-172.91149043,0.00016878,2]
[349530301,1737282639138,-203.30990918,0.000169,2]
[349530302,1737282639148,-600.0,0.00017,2]
[349530303,1737282639159,-746.3864837,0.0001701,2]
[349530304,1737282639170,-500.0,0.00017262,2]
[349530305,1737282639180,-168.19,0.00017362,2]
[349530306,1737282639189,-250.0,0.00017383,2]
[349530307,1737282639199,-692.84,0.000174,2]
[349530308,1737282639208,-203.30990918,0.000174,2]
[349530309,1737282639218,-500.0,0.00017466,2]
[349530310,1737282639228,-500.0,0.00017466,2]
[349530311,1737282639237,-500.0,0.00017466,2]
[349530312,1737282639246,-500.0,0.00017466,2]
[349530313,1737282639255,-500.0,0.00017466,2]
[349530314,1737282639265,-500.0,0.00017466,2]
[349530315,1737282639274,-500.0,0.00017466,2]
[349530316,1737282639283,-500.0,0.00017466,2]
[349530317,1737282639293,-500.0,0.00017466,2]
[349530318,1737282639302,-500.0,0.00017466,2]
[349530319,1737282639312,-500.0,0.00017466,2]
[349530320,1737282639321,-500.0,0.00017466,2]
[349530321,1737282639331,-500.0,0.00017466,2]
[349530322,1737282639340,-500.0,0.00017466,2]
[349530323,1737282639349,-500.0,0.00017466,2]
[349530324,1737282639358,-500.0,0.00017466,2]
[349530325,1737282639368,-500.0,0.00017466,2]
[349530326,1737282639377,-500.0,0.00017466,2]
[349530327,1737282639386,-500.0,0.00017466,2]
[349530328,1737282639395,-500.0,0.00017466,2]
[349530329,1737282639405,-500.0,0.00017466,2]
[349530330,1737282639414,-500.0,0.00017466,2]
[349530331,1737282639426,-500.0,0.00017466,2]
[349530332,1737282639435,-500.0,0.00017466,2]
[349530333,1737282639444,-500.0,0.00017466,2]
[349530334,1737282639453,-500.0,0.00017466,2]
[349530335,1737282639463,-676.0,0.00017466,2]
[349530336,1737282639472,-1000.0,0.00017466,2]
[349530337,1737282639481,-250.0,0.00017466,2]
[349530338,1737282639491,-157.19,0.00017552,2]
[349530339,1737282639500,-940.47,0.00017608,2]
[349530340,1737282639509,-746.3864837,0.00017806,2]
[349530341,1737282639518,-23900.0,0.00017862,2]
[349530342,1737282639527,-203.30990918,0.000179,2]
[349530343,1737282639536,-545.51654115,0.00018,2]
[349530344,1737282639545,-181.60688353,0.00018056,2]
[349530345,1737282639554,-1686.66,0.00018082,2]
[349530346,1737282639563,-157.0,0.00018365,2]
[349530347,1737282639572,-203.30990918,0.000184,2]
[349530348,1737282639581,-200.0,0.000184,6]
[349530349,1737282639591,-500.0,0.000185,6]
[349530350,1737282639600,-800.0,0.000186,6]
[349530351,1737282639610,-746.3864837,0.00018603,2]
[349530352,1737282639619,-1000.0,0.000187,2]
[349530353,1737282639628,-231.0,0.000187,2]
[349530354,1737282639638,-1100.0,0.000187,6]
[349530355,1737282639647,-366.0,0.000187,2]
[349530356,1737282639657,-1686.66,0.00018751,2]
[349530357,1737282639667,-300.0,0.00018753,2]
[349530358,1737282639678,-1300.0,0.000188,6]
[349530359,1737282639687,-500.0,0.00018826,2]
[349530360,1737282639696,-200.0,0.000189,6]
[349530361,1737282639705,-203.30990918,0.000189,2]